Workbook

Sheet 统计表
B2: 吉林省工业技术研究院重点项目库
B3: 序号 | C3: 项目名称 | D3: 主要建设内容及规模 | E3: 项目主体 | F3: 项目进展 | G3: 跟踪支持单位 | H3: 项目来源
C4: 总计 | D4: =SUM(D5,D39,D70,D95,D156,D161,D175,D200,D226,D237,D243,D254,D275,D281) -> 272
B5: 一 | C5: 汽车电子及新型汽车零部件 | D5: =B38 -> 33
B6: 1 | C6: 汽车智能化装配生产线项目 | D6: 汽车零部件及配件制造；工厂数字化、智能化改造、工艺技术升级；智能汽车相关技术的研发；汽车零部件轻量化以及汽车零部件系统相关研发，致力于为“三富”智能制造和数字化转型提供支撑 | E6: 新慧科技公司、众升科技公司 | F6: 完成 | G6: 工研院 | H6: 亚东投资
B7: 2 | C7: 电致变色薄膜项目 | D7: 首创的可逆电控质子转移变色机理，开发出的全新的电致变色技术，可用于汽车变色调光天窗、自适应伪装、建筑变色玻璃、智能变色眼镜等领域。项目拟开展柔性电致变色薄膜的制备和产业化应用，为市场提供节能、舒适、高性价比的柔性电致变色调光产品 | E7: 珠海兴业新材料、吉林大学、工研院公司 | F7: 投资 | G7: 工研院 | H7: 市场调研
B8: 3 | C8: 恩高光学PC玻璃项目 | D8: 江苏恩高光学材料有限公司突破了加工设备及工艺流程的问题，成功开发出全球独特的前硬化可热压印刷PC硬化板及大尺寸PC玻璃，实现高性能、较低成本、高良品率兼顾的PC玻璃的生产与销售，是我国首家获得欧洲汽车塑料安全玻璃E-mark认证，并通过ECE R43测试的汽车塑料玻璃制造企业 | E8: 江苏恩高光学材料有限公司 | F8: 研究论证 | G8: 工研院 | H8: 旗智创新中心
B9: =B8+1 -> 4 | C9: 汽车及高端制造业电控系统测试项目 | D9: 上海蔚赫信息科技有限公司为全球汽车及高端制造业电控系统提供测试设备及服务，以实现工具链自主可控为目标，提供硬件在环仿真（HiL）、智能试验数据平台等。蔚赫信息已经完成收购德国BOCSH全资子公司ETAS公司全球HiL IP并已经开始接管整合ETAS HiL全球业务，LABCAR是全球汽车HiL细分市场TOP2品牌，有近30年市场应用经验，被全球一流汽车制造商和零部件供应商广泛采用 | E9: 上海蔚赫信息科技有限公司 | F9: 观察 | G9: 工研院 | H9: 旗智创新中心
B10: 5 | C10: 旗禾硅碳材料应用项目 | D10: 旗禾科技（吉林）有限责任公司成立于2022年1月，是由吉林凯禹、一汽创新基金、吉林盛鑫、锦州凯美、旗智创新中心、产学研基金六方共同出资设立的稻壳资源化综合利用企业。公司立足吉林省农业和汽车产业优势，通过高校院所资源，依托属地汽车产业优势，以农业废弃物资源综合利用为基础，变废为宝，围绕汽车轻量化和低碳化，风光电网和智能仪表等，着重发展硅炭材料、高性能专用料、高活性炭基材料、高附加值器件四大类产品 | E10: 旗禾公司 | F10: 研究论证 | G10: 工研院 | H10: 旗智创新中心
B11: 6 | C11: 麦迪克自动轮项目 | D11: 吉林大学靳立强教授所发明的自动轮技术以轮毂电机驱动为基础集成线控制动、主销转向、高承载悬架结构为一体。使车轮本身具备转向、制动、驱动等功能，使底盘能够实现整车任意方向直线行驶包括原地调头、横移、斜移、角转向等各种行驶功能，是唯一能快速被车企认可的角模块构型方案。已完成第四代满足产业化需求的自动轮产品研发并实现多家车企应用装车。 | E11: 麦迪克公司 | F11: 观察 | G11: 工研院 | H11: 市场调研
B12: 7 | C12: 格致汽车科技项目 | D12: 汽车轻量化车身成型装备及汽车金属零部件的设计、研发、制造及销售 | E12: 格致汽车科技股份有限公司 | F12: 观察 | G12: 工研院 | H12: 亚东投资
B13: 8 | C13: 长春森酉科技项目 | D13: 为整车、汽车零部件企业提供最佳的焊接、冲压自动化智能制造装备与系统集成解决方案开发能力的全能型企业 | E13: 长春森酉科技有限公司 | F13: 观察 | G13: 工研院 | H13: 市场调研
B14: 9 | C14: 赛博以太无线供电项目 | D14: 利用海外公司授权使用的磁共振技术实现车内远距离无线供电应用 | E14: 赛博国际 | F14: 观察 | G14: 工研院 | H14: 市场调研
B15: 10 | C15: UWB-AOA单锚点数字钥匙 | D15: UWB数字钥匙和车载雷达、UWB定位系统 | E15: 北京全迹科技有限公司 | F15: 观察 | G15: 工研院 | H15: 旗智创新中心
B16: 11 | C16: “汽车智能驾驶脑” 一中国自主可控的汽车智能驾驶计算平台 | D16: 瞄准中国自主可控智能网联汽车计算单元的国家战略需求，开展中国设计中国制造的智能网联汽车专用高性能控制器研发 | E16: 吉林大学 | F16: 观察 | G16: 工研院 | H16: 企业家日
B17: 12 | C17: 面向自动驾驶车辆的全天候、 全时段室外目标跟踪行驶控制系统 | D17: 无人自主地质勘探装备关键技术研究与系统开发，针对野外复杂恶劣作业环境特点，已形成一套集环境感知、自主行驶、无人自主作业功能于一身的智能移动勘探作业平台，目前，已完成系统的搭建与样机测试，并正在不断深化调整系统功能，向成果应用阶段进行开发 | E17: 吉林大学 | F17: 观察 | G17: 工研院 | H17: 企业家日
B18: 13 | C18: 汽车数智化制造平台 | D18: 针对制造企业的痛点，启璞沉淀了数套全方位打通的数字化服务方案，其中包括3大平台、8个核心系统（共20多个系统，100多个工业APP），打造智能工厂 | E18: 长春启璞科技信息咨询有限公司 | F18: 观察 | G18: 工研院 | H18: 市场调研
B19: 14 | C19: 线控EMB系统 | D19: 项目基础为吉大团队与中汽创智合作的IBC液压线控制动系统应用软件开发、与浙江亚太合作的智能辅助驾驶系统的技术积累，以及项目团队申请发明专利（16）、学术论文（56）等。 | E19: 吉林大学汽车学院 | F19: 观察 | G19: 工研院 | H19: 市场调研
B20: 15 | C20: 汽车电子 | D20: 致力于成为全球领先的科技创新型企业。必捷必科技全面覆盖全球主流软件及汽车电子硬件开发技术，同时重点布局国产自主控制器研发赛道，依托汽车电子技术的深厚积累，面向智能汽车、物联网业务领域，以自主创新为基石，集聚产业链优势技术资源，为客户提供全生命周期的技术研发和全栈解决方案服务。 | E20: 必捷必科技（吉林省）有限公司 | F20: 观察 | G20: 工研院 | H20: 市场调研
B21: 16 | C21: 汽车网络安全 | D21: 依托授权的专利技术，通过自主研发和校企合作，开发设计出来的智能车载防火墙产品项目 | E21: 吉林省安来科技有限责任公司 | F21: 观察 | G21: 工研院 | H21: 市场调研
B22: =B21+1 -> 17 | C22: 数格系统——汽车车身技术AI解决方案 | D22: 主营业务工业软件开发及AI数字孪生开发，目标打造国内汽车行业领先的AI数字化轻量化解决方案服务商 | E22: 长春旗格科技有限公司 | F22: 观察 | G22: 工研院 | H22: 创客大赛
B23: 18 | C23: 智能网联汽车供应链产业园项目 | D23: 引入国内外高端配套商，依托长春市朝阳区已经整理出来的4平方公里的土地，连接公主岭物流园，建设一个以模块化、数字化、智能化为标志的4.0版的高端汽车零部件产业园 | E23: 一汽资本运营公司、长发集团、省国有资本运营公司 | F23: 观察 | G23: 工研院 | H23: 省重大项目办
B24: 19 | C24: 汽车智能座舱项目 | D24: 法国佛吉亚、旭阳集团合作开发生产汽车智能座舱项目，为汽车提供模块化产品，项目落位智能网联汽车供应链产业园 | E24: 法国佛吉亚集团、长春旭阳工业 | F24: 观察 | G24: 工研院 | H24: 省重大项目办
B25: 20 | C25: 智能网联汽车工业互联网项目 | D25: 由一汽牵头，建设智能网联汽车工业互联网平台，支撑一汽建设国内领先、世界一流的移动出行服务商。目前，智能网联汽车工业互联网平台已经初步具备提供应用部署开发服务条件，测试系统、测试工具、测试规范、工业APP库已建成 | E25: 一汽集团、华为、神州数码 | F25: 观察 | G25: 工研院 | H25: 省重大项目办
B26: 21 | C26: 富奥汽车底盘轻量化项目 | D26: 建设生产低压铸造、高压铸造类铝合金的底盘及车身结构件的生产线 | E26: 富奥汽车零部件有限公司 | F26: 观察 | G26: 工研院 | H26: 十四五重大工业项目
B27: 22 | C27: 富奥汽车零部件股份有限公司泵业分公司智能制造整体改造项目 | D27: 建设智能制造系统解决方案。新建自动化的装配线体，进行老线体的智能化升级改造，实现远程运维 | E27: 长春合心机械制造有限公司 | F27: 观察 | G27: 工研院 | H27: 十四五重大工业项目
B28: 23 | C28: 玲珑轮胎高性能子午线轮胎生产项目 | D28: 建设年产1400万条高性能子午线轮胎和20万条翻新轮胎智能工厂，打造全球轮胎行业首个数字化、智能化的工业互联网平台 | E28: 山东玲珑轮胎股份有限公司 | F28: 观察 | G28: 工研院 | H28: 十四五重大工业项目
B29: 24 | C29: 汽车线束智能制造装备 | D29: 实现了线束柔性组装测试工作台与握力感应布线机械手，可依据不同线束型号快速完成固线节点换型和线束排布，为柔性化组装测试提供平台基础 | E29: 长春光机所 | F29: 观察 | G29: 工研院 | H29: 企业家日
B30: 25 | C30: 车窗玻璃及车身用柔性、彩色智能调光膜技术 | D30: 开发具有自主知识产权的基于电致变色技术的全彩色智能调光膜，成本下降50%，驱动电压低于5V，响应速度秒级，双稳态（颜色保持不耗电）、可大面积制备，不仅适用于车窗，也可贴于车身任何部位，用于改变颜色、定制化动态显示所需信息 | E30: 长春光机所吕莹团队 | F30: 观察 | G30: 工研院 | H30: 企业家日
B31: 26 | C31: 旗智创新中心技术开发项目 | D31: 奔腾定制车型娱乐部件开发项目、红旗球幕驾驶体验项目、车载图像增强摄像头研发项目、纳米保温防火隔声材料应用项目、三坐标智慧测量系统项目、车路协同V2X-OBU终端及测试项目、L4级冗余线控底盘平台车控单元项目 | E31: 旗智创新中心 | F31: 观察 | G31: 工研院 | H31: 旗智创新中心
B32: =B31+1 -> 27 | C32: 挚感光子自动驾驶激光雷达项目 | D32: 主要进行单点传感器应用/市场、新品研发（3D扫描，测厚仪，光谱仪）、ASIC研发、第二代FMCW研发、OPA及SiP全固态汽车激光雷达研发 | E32: 挚感（苏州）光子科技有限公司 | F32: 观察 | G32: 工研院 | H32: 旗智创新中心
B33: =B32+1 -> 28 | C33: 轴向开关磁阻轮毂电机项目 | D33: 开发用于电动汽车的轮毂电机 | E33: 吉林大学汽车工程学院庄晔团队 | F33: 观察 | G33: 工研院 | H33: 中科创投
B34: =B33+1 -> 29 | C34: 纯电动汽车无动力中断换挡两挡AMT变速箱项目 | D34: 优化设计电驱动传动构型——无动力中断2档AMT变速器及其控制系统，换挡平顺，无动力中断 | E34: 吉林大学通信工程学院陈虹团队 | F34: 观察 | G34: 工研院 | H34: 中科创投
B35: =B34+1 -> 30 | C35: 激光雷达项目 | D35: 车载固态激光雷达光源模块研制；硅基光电子集成车载固态激光雷达芯片的设计研制；车载固态激光雷达高速控制电路设计研制及系统集成 | E35: 一汽集团、长春光机所、吉林大学、富赛汽车电子 | F35: 观察 | G35: 工研院 | H35: 一汽集团
B36: 31 | C36: 增加电动车总续航里程的新型驱动电机项目 | D36: 设计，研发、制造及销售高续航新型驱动电机，通过全时回收定子线圈断电后产生的高压反电动势电能，增加电动车辆续航里程 | E36: 吉林省任你行新能源科技有限公司 | F36: 观察 | G36: 工研院 | H36: 吉浙对口合作
B37: 32 | C37: 汽车线束智能柔性自动化生产线项目 | D37: 汽车线束智能柔性自动化生产线对传统的汽车线束生产线进行了重新布局和合理配置，可实现汽车线束分装组装的全流程生产 | E37: 中科院长春光机所 | F37: 观察 | G37: 工研院 | H37: 长春市汽开区
B38: 33 | C38: 富晟亿美汽车光电零部件（长春）有限公司项目 | D38: 研发、生产智能汽车内外饰灯光系统零部件、自动驾驶雷达系统零部件，提供整体解决方案 | E38: 富晟亿美 | F38: 观察 | G38: 工研院 | H38: 省股权
B39: 二 | C39: 光电子及智能传感器 | D39: =B69-B38 -> 30
B40: =B38+1 -> 34 | C40: 求是光谱芯片项目 | D40: 研发产品主要有三类：一类为以智能手机为平台在线检测识别日用消费品中有害物质的易谱系列；一类为“光谱芯片”，光谱芯片是公司的核心产品；一类为围绕“光谱芯片”在智能制造领域的应用产品 | E40: 长春理工大学、吉林求是光谱数据科技有限公司 | F40: 观察 | G40: 工研院 | H40: 长春理工
B41: =B40+1 -> 35 | C41: OCT成像与光纤传感项目 | D41: 光学相干层析成像系统（OCT）、分布式光纤传感系统的研发与生产 | E41: 吉林大学张天瑜 | F41: 观察 | G41: 工研院 | H41: 市场调研
B42: =B41+1 -> 36 | C42: CMOS图像传感器芯片产业化项目 | D42: 团队拥有先进的芯片设计硬件和EDA软件环境，具备完整的芯片设计、图像算法、器件工艺等关键技术的研发能力。通过现有产品及在研产品产业化落地，在智能车载、航空航天、医疗等领域拟与东光集团、一汽集团合作 | E42: 吉林省福斯匹克科技有限责任公司 | F42: 观察 | G42: 工研院 | H42: 长春理工
B43: 37 | C43: 激光补光灯及激光雷达项目 | D43: 通过激光合成光谱技术发出替代阳光，设计具有特定光谱波长的专用灯具；无人机搭载激光雷达对大面积田间作物三维表型数据的采集，在农作物的调查、监测、管理等方面，能够提供多源数据作为支撑 | E43: 长春光机所 | F43: 观察 | G43: 工研院 | H43: 市场调研
B44: 38 | C44: 全光纤脉冲激光器产业化 | D44: 全光纤脉冲激光器采用光纤非线性锁模技术和全光纤结构设计，通过对长波段光纤色散补偿压缩脉冲宽度，实现窄脉宽激光信号的产生，具备输出脉冲效率高、峰值功率高、脉冲强度大、重复频率可调谐，波长可覆盖近、中红外宽波段的特点。广泛用于金属切割、焊接，高分子聚合物及显示屏等非金属加工、增材制造、电子元器件加工、医疗手术和美容等 | E44: 长春理工 | F44: 观察 | G44: 工研院 | H44: 企业家日
B45: 39 | C45: 红外计算多光谱探测系统 | D45: 一种基于表面等离子体的金属纳米盘/孔阵列滤光片，其为红外多光谱集成化片上设计的实现提供新的解决方案。该研究在极大程度上解决传统红外多光谱相机的重量和体积弊端，同时提供优秀的光谱分辨率和较低串扰，并结合自主研发的计算光谱重建技术，完成红外多光谱相机的集成化设计 | E45: 长春理工 | F45: 观察 | G45: 工研院 | H45: 企业家日
B46: 40 | C46: 便携式自动化光纤化学发光免疫分析仪 | D46: 化学发光免疫分析仪作为体外诊断的仪器，可对疾病标志物精准检测。本项目以生物传感技术结合免疫分析，构建了新型光纤免疫传感器，开发出具有自主知识产权的，高效、低成本、可现场检测的小型便携式自动化光纤化学发光免疫分析仪，实现痕量生物标记物的超灵敏检测，解决自动化化学发光免疫分析仪的关键技术被国外公司垄断、便携性差、价格高等问题 | E46: 东北师大 | F46: 观察 | G46: 工研院 | H46: 企业家日
B47: 41 | C47: 江机民科军用装备项目 | D47: 由兵工集团所属国营五二四厂改制而来，其红外瞄准镜已获军队5年期订单，同时布局多个军用及非军用产品线 | E47: 吉林市江机民科实业有限公司 | F47: 研究论证 | G47: 工研院 | H47: 市场调研
B48: 42 | C48: 微型化低功、远程通信、定位追踪成套设备 | D48: 公司主要产品为微型化低功、远程通信、追踪定位成套设备，解决无公网区域的远程通信和目标定位搜索以及有公网区域的信息化系统的数据安全和数据保密问题，实现独立的低功远程上下行通信功能和目标位置追踪、主动搜索功能。 | E48: 吉林亮中科技有限公司 | F48: 观察 | G48: 工研院 | H48: 市场调研
B49: 43 | C49: 亚纳米高精度光学元件 | D49: 吉林省巨程智造光电技术有限公司成立于2020 年9月25日，注册资本1428万元。公司位于长春市国家级新区璀璨产业园，厂区面积10000平方米，是一家专业从事高精密纳米光学元器件、光机组件研发、生产的企业，具备光学加工及检测全道序能力。主要产品非球面镜、高精度透镜、大口径平面镜、立方镜、分划板、红外产品、棱镜和平面镜、光机组件，已供向航空航天、军工、科研院所、高新技术企业等。 | E49: 吉林省巨程智造光电技术有限公司 | F49: 观察 | G49: 工研院 | H49: 市场调研
B50: =B49+1 -> 44 | C50: 光学薄膜、光谱滤光片 | D50: 公司主营业务围绕新型光谱滤光片及基于光谱滤光片的(成像)光谱仪等核心技术，致力于打造国内高端光学镀膜、光学元件、光电仪器的研发生产平台，产品广泛应用于航空航天、食品卫生、精准农业以及教学科研等领域。 | E50: 长春长光辰谱科技有限公司 | F50: 观察 | G50: 工研院 | H50: 光电子孵化器
B51: 45 | C51: 8K摄像机 | D51: 公司专注于8K摄像模组及整机的研发、生产、测试、组装和维修等完整工艺流程，完成产品的小批量生产与市场销售，形成稳定的营业收入与利润后,持续加大研发投入。通过持续研发投入，形成知识产权成果，保持企业增长创新活力。通过高效转化技术成果，孵化具有市场技术竞争优势的产品，形成良性动态发展,实现企业利润盈余，保持企业稳定发展。 | E51: 长春长光新视超高清科技有限公司 | F51: 观察 | G51: 工研院 | H51: 长光视园
B52: 46 | C52: 碳化硅、氧化铝陶瓷封装基板产品设计、制造与检测 | D52: 针对大面阵科学级CMOS图像传感器封装卡脖子问题，突破硬脆性材料微倒角加工、耦合强化传热等多项关键技术，国内首次实现碳化硅封装，具有“三新一高”的特点，新材料：在图像传感器封装领域，国内首次使用碳化硅材料。 | E52: 长春长光启辰科技有限公司 | F52: 观察 | G52: 工研院 | H52: 长光视园
B53: 47 | C53: 和光数据监测、分析 | D53: 燃气、煤质、光伏、风电的在线监测，高光谱数据分析与处理，图像识别与分析，无人机光谱检测，机器人光谱检测，设备故障诊断与分析，自主导航与位置定位等核心技术与专利产品，形成大数据平台、人工智能算法体系、医疗检测平台、无人机智能巡检系统、机器人智能巡检系统、智慧供热系统、电力检修平台等智能生态链条。 | E53: 吉林省和光智能科技有限责任公司 | F53: 观察 | G53: 工研院 | H53: 长光视园
B54: 48 | C54: 中大口径非球面及自由曲面的高端精密光学元件加工及检测装备 | D54: 研制以超精密磁流变加工技术、计算机数控小磨头加工技术为基础的一系列光学复杂曲面加工装备，以快速相位偏折检测技术、高精度子孔径拼接技术为基础的一系列高端复杂曲面检测装备，打造具有国际影响力的先进光学装备生产商及面向高端客户定制的光学产品研制服务提供商。 | E54: 长春长光大器科技有限公司 | F54: 观察 | G54: 工研院 | H54: 长光视园
B55: 49 | C55: 单细胞分选仪 | D55: 长光辰英核心产品——PRECI SCS单细胞分选仪，是公开发布的首款基于激光诱导向前转移技术的商品化单细胞分离产品，具有免标记、非接触、准确率高等特点，广泛应用于单细胞测序、未培养微生物研究、工程细胞筛选等领域。此外，公司自主研发的P300共聚焦拉曼光谱仪、S3000超快三维成像系统、MicroRaman颗粒物检测仪等产品，为科研、医学、制药等领域提供有力工具。 | E55: 长春长光辰英生物科学仪器有限公司 | F55: 观察 | G55: 工研院 | H55: 长光视园
B56: =B55+1 -> 50 | C56: 深度真空制冷短波红外成像技术及产业化 | D56: 真空制冷成像技术研发、制造、装调、测试，实现国产替代 | E56: 长春长光奥闰光电科技有限公司 | F56: 观察 | G56: 工研院 | H56: 长光视园
B57: 51 | C57: 大气光学综合参数测量系统 | D57: 大气及气象参数测试设备研发与测试 | E57: 珩辉光电测量技术（吉林）有限公司 | F57: 观察 | G57: 工研院 | H57: 创客大赛
B58: 52 | C58: 激光雷达与毫米波雷达项目 | D58: 与航天科技集团九院704研究所合作，共同开发生产激光雷达和毫米波雷达。同时，共同开发毫米波安检仪等安防产品。合作开发海上遥感、通信、检测技术和产品，参与珲春海洋经济合作示范区建设 | E58: 航天科技集团、吉林省泰华电子股份有限公司 | F58: 观察 | G58: 工研院 | H58: 省重大项目办
B59: 53 | C59: 长春国际传感器产业园 | D59: 构建生产制造中心、产学研中心、产品和技术展示中心、应用场景体验中心、公共服务平台和企业总部基地等6大板块，同时构建国家级传感器产业创新中心，形成以长春为中心，北京、杭州、深圳为支撑的传感器产业创新体系 | E59: 长春荣德光学 | F59: 观察 | G59: 工研院 | H59: 省重大项目办
B60: 54 | C60: 高端传感器项目 | D60: 与中国电子信息产业集团、航天科技集团航天动力技术研究所（四院）、九院（704所）等单位合作，在吉林省研发制造高端传感器，面向汽车、轨道客车、卫星、火箭及物联网等领域推广应用 | E60: 航天科技集团、中国电子信息产业集团、中国一汽集团、长春光机所 | F60: 观察 | G60: 工研院 | H60: 省重大项目办
B61: 55 | C61: 智能农业传感器项目 | D61: 包括粮仓多参数一体化检测传感器、系列粮食水分在线快检传感器、核磁水分快速检测仪、粮食生物安全J值快检传感器、粮仓绝对水势监测传感与分析系统等 | E61: 吉大生物与农业工程学院、仪器学院、吉大工程仿生教育部重点实验 | F61: 观察 | G61: 工研院 | H61: 传感器规划
B62: 56 | C62: 光电传感器项目 | D62: 光电仪器、激光、半导体照明与显示、光伏、光通信 | E62: 光机所、吉大、长理、东光集团、奥莱德、亿思达科技、赛诺索光电 | F62: 观察 | G62: 工研院 | H62: 传感器规划
B63: 57 | C63: 化学量传感器项目 | D63: 车载尾气检测用NOx、NH3传感器；环境检测用CO、SO2、NO2和O3传感器；燃料电池型新能源汽车安全管理用CO、甲醇和H2传感器；医疗诊断用典型VOC传感器；阻容式聚合物湿度传感器 | E63: 吉大电子科学与工程学院、吉大先进气体传感器重点实验 | F63: 观察 | G63: 工研院 | H63: 传感器规划
B64: 58 | C64: MEMS传感器项目 | D64: 车联网安全与箱桥智能监测传感器；车联网安全与车轮智能监测的多参量振动计传感器；车联网安全与电动汽车充放电智能管理的无线无源非侵入式电流检测传感器 | E64: 吉林大学微工程与微系统实验室 | F64: 观察 | G64: 工研院 | H64: 传感器规划
B65: 59 | C65: 激光农业照明灯的研制与应用推广 | D65: 主要研究激光农业照明技术及装备，可大幅提高单位电能的光补偿效果，是一种低功耗的新型补光技术，面向水稻育苗、食药用菌培植、高端经济作物和中草药种植等吉林省的特色设施农业产业，实现作物全生命周期的生长调控，达到增产提质的目的 | E65: 长春光机所 | F65: 观察 | G65: 工研院 | H65: 企业家日
B66: 60 | C66: 小型、高亮度特种白激光照明光源 | D66: 自主研发和攻关，基于可见光半导体激光技术和激光合束技术，研制出小型、轻量、高效、输出功率可达几瓦至数千瓦的高亮度特种白激光照明光源，应用在监狱探照、国界安防及工场照明等 | E66: 长春光机所 | F66: 观察 | G66: 工研院 | H66: 企业家日
B67: 61 | C67: 星-空-地一体化数字农业技术 | D67: 研发出一套农业信息提取模型并制作出农业遥感系列产品，该成果在吉林省大部分地区进行了应用，已服务于吉林省政府衣业种植结构调整及农业保险公司的估损及定损 | E67: 吉林大学 | F67: 观察 | G67: 工研院 | H67: 企业家日
B68: 62 | C68: 反向驱动F-P传感型微光谱仪开发与产业化项目 | D68: 研发小微型光谱仪，拓宽微型光谱仪的光谱探测范围以及光谱探测精度，与手机摄像、车载监测系统等融合抢占现有市场，开拓新应用市场 | E68: 中科院长春光机所 | F68: 观察 | G68: 工研院 | H68: 吉浙对口合作
B69: 63 | C69: 基于第三代氧化物半导体薄膜的MEMS传感器项目 | D69: 建立传感器研发中心，依托气体流量传感器、气体压力传感器、氢气泄漏传感器、可燃气体传感器、集成式温度传感器、阵列式单一气体传感器、甲醛气体传感器、燃气传感器、一氧化氮传感器产品知识产权，进行传感器封测研发线的开发 | E69: 中山大学 | F69: 观察 | G69: 工研院 | H69: 市场调研
B70: 三 | C70: 精密仪器及先进装备 | D70: =B94-B69 -> 24
B71: =B69+1 -> 64 | C71: 超快精密激光加工装备关键技术研究与产业化 | D71: 瞄准电子制造和半导体领域硬脆材料器件精密制造的国内迫切需求，以解决蓝宝石、石英等硬脆构件的高精度、高品质制造为出发点，攻克装备性能提升研究和工业化设计难题，开发基于超快激光隐形切割与定量改性的多功能一体化的硬脆材料精密加工装备。集成光电子学国家重点实验室 | E71: 吉林大学 | F71: 观察 | G71: 工研院 | H71: 对外合作
B72: =B71+1 -> 65 | C72: 工业相机及视频流应用 | D72: 设备赋能数字化工厂、智能装备生产线；实现自动化生产、数字化管理、产品可追溯等功能 | E72: 无界融合（吉林）科技有限公司 | F72: 观察 | G72: 工研院 | H72: 工研院对外合作中心
B73: =B72+1 -> 66 | C73: 智能采茶设备项目 | D73: 集多光谱成像技术、三维成像技术、机器视觉、人工智能，机器人以及智能控制等当前国内外先进技术为一体的设备，智能农作物采摘设备的研发可解决劳动力短缺的问题、降低农民的劳动强度、提高劳动生产率、降低农作物成本、保证农作物及时生产采收、保证农产品质量 | E73: 中科院长春光机所 | F73: 观察 | G73: 工研院 | H73: 市场调研
B74: 67 | C74: 航空线束自动化生产装备产业化 | D74: 本项目技术及产品取得发明专利18项、实用新型专利2项；申报中的发明专利3项，在国际上处于领先地位，多项技术属于行业首创，相关产品已通过高校接受飞机制造厂委托开发的形式进行小批量生产，于2018年应用在国内某型号战斗机的线束装备生产线中，未来可拓展应用于民用飞机、高铁、汽车等线束装备领域。已用于生产，产业化成熟度高 | E74: 长春理工 | F74: 观察 | G74: 工研院 | H74: 企业家日
B75: 68 | C75: 智能真火、烟热消防救援训练设施孵化项目 | D75: 蓝程科技发展有限公司成立于2021年，致力于开发用于消防救援行业各类火灾及特种灾害事故等场景的智能化真火、烟热训练设施产品及单兵作战综合定位、检测系统 | E75: 蓝程科技发展有限公司 | F75: 观察 | G75: 工研院 | H75: 市场调研
B76: =B75+1 -> 69 | C76: 融成智造灌装设备项目 | D76: 国内危化灌装设备生产线细分龙头企业（市占率50%） | E76: 长春融成智能设备制造股份有限公司 | F76: 研究论证 | G76: 工研院 | H76: 亚东公司
B77: =B76+1 -> 70 | C77: 轨道车辆车载设备研发和生产 | D77: 开发基于云边协同的车对地无线传输与安全监测系统，解决安全、运维、成本、实施等痛点。 | E77: 吉林云帆智能工程有限公司 | F77: 观察 | G77: 工研院 | H77: 创业导师活动
B78: =B77+1 -> 71 | C78: 北方农机产业创新示范基地 | D78: 规划建设集生产、研发为一体，服务北方、辐射东北亚地区的百亿级北方农机产业创新示范基地。一是康达二期5000台播种机已开工；二是与波兰尤妮亚、美国艾科、俄罗斯罗斯托夫等洽谈合作形成了前期意向，下一步将继续进行深入对接洽谈；三是可研已通过专家论证 | E78: 国机集团中国农机院 | F78: 观察 | G78: 工研院 | H78: 省重大项目办
B79: 72 | C79: 启星铝业轨道客车大型铝合金型材及汽车轻量化零部件项目 | D79: 建设235MN特种挤压生产线、75MN挤压生产线各1条，购置设备135台套 | E79: 吉林启星铝业有限公司 | F79: 观察 | G79: 工研院 | H79: 十四五重大工业项目
B80: 73 | C80: 安瑞克智能制造产业建设项目 | D80: 主要建设安瑞克企业研究院、智慧能源管理中心、检测及试验中心、生物质锅炉设备智能制造生产基地、生物质燃料加工生产基地、智能化输变电设备生产基地等 | E80: 安瑞克电气科技有限责任公司 | F80: 观察 | G80: 工研院 | H80: 十四五重大工业项目
B81: 74 | C81: 道路主动除冰雪导电复合型材与智能监控技术 | D81: 针对主动融冰雪 “卡脖子” 技术难题，提出道路融冰雪高性能材料一结构一体化设计理论及灾害主动防范方法，实现绿色、低能耗、安全、低成本、易施工、智能化地防范冰雪灾害 | E81: 吉林大学 | F81: 观察 | G81: 工研院 | H81: 企业家日
B82: 75 | C82: 工业炉内温度在线连续测量仪项目 | D82: 研发用于炼钢炉、蓝宝石晶体生长炉等工业炉场景的温度在线连续测量仪 | E82: 长春理工大学理学院徐立君团队 | F82: 观察 | G82: 工研院 | H82: 中科创投
B83: 76 | C83: 地学物理探测仪器项目 | D83: 从事地学物理探测仪器等方面的研发、生产、销售及工程技术应用 | E83: 吉林大学国家地球物理探测仪器工程技术研究中心 | F83: 观察 | G83: 工研院 | H83: 中科创投
B84: 77 | C84: 高端光学系统研发项目 | D84: 基因测序用超高通量显微镜头、半导体在线检测用特殊高端光学镜头、军民两用特种光学镜头、系列化特种导航光学镜头开展研发 | E84: 长春长光智欧科技有限公司 | F84: 观察 | G84: 工研院 | H84: 中科创投
B85: 78 | C85: 智能农机研发项目 | D85: 自主研发农机无人驾驶系统 | E85: 北京中科原动力科技有限公司 | F85: 观察 | G85: 工研院 | H85: 中科创投
B86: 79 | C86: 视频高光谱成像仪项目 | D86: 研制可见近红外的视频高光谱成像仪 | E86: 中科院长春光机所 | F86: 观察 | G86: 工研院 | H86: 长光视园
B87: 80 | C87: 傅里叶光谱成像仪项目 | D87: 研制可搭载于轻型无人机的灵巧型高速傅里叶光谱成像仪 | E87: 中科院长春光机所 | F87: 观察 | G87: 工研院 | H87: 长光视园
B88: 81 | C88: 多层析、高分辨光场调控型立体动态显微成像系统项目 | D88: 多层析显微成像系统用于获取样品三维信息表征，可用于生物医学领域获取细胞、微小生物组织等样品的高分辨三维显微成像与分析研究 | E88: 中科院长春光机所 | F88: 观察 | G88: 工研院 | H88: 长光视园
B89: 82 | C89: 热熔沉积式3D打印机项目 | D89: 开发热熔沉积式3D打印机 | E89: 深圳市开物三维科技有限公司 | F89: 观察 | G89: 工研院 | H89: 中科德睿
B90: 83 | C90: 多旋翼无人机项目 | D90: 针对“智慧农业”发展需求，已研发多种型号多旋翼无人机，并完成大量农业作业试验，目前已进入产业化推广阶段 | E90: 中科院长春光机所 | F90: 观察 | G90: 工研院 | H90: 市场调研
B91: 84 | C91: 温室气体探测仪 | D91: 长春光机所团队以可调谐激光吸收光谱技术、离轴积分腔增强输出光谱、数字正交锁相放大器等光学核心技术研发高精度气体监测、探测仪器，突破国外垄断。 | E91: 中科院长春光机所 | F91: 观察 | G91: 工研院 | H91: 科技大市场
B92: 85 | C92: 小麦赤霉病高光谱普查检测设备项目 | D92: 成像高光谱仪能同时获得样本的光谱以及空间信息，首先对小麦籽粒高光谱图像进行反射率反演、滤波、特征提取，然后对每个像元进行分类，可以快速判断小麦籽粒是否染病，为实时原位检测小麦籽粒提供了可行的解决方案 | E92: 中科院长春光机所 | F92: 观察 | G92: 工研院 | H92: 市场调研
B93: 86 | C93: 基于小型机械臂的磁流变柔性在线加工检测系统项目 | D93: 有效实现了常规非球面批量在线加工、非常规光学元件的定制加工以及汽车领域内特种合金材料模具的精密抛光等功能，发挥了“察打一体化”的智能化优势，真正意义上实现了加工、检测高效无人化闭环 | E93: 中科院长春光机所 | F93: 观察 | G93: 工研院 | H93: 市场调研
B94: 87 | C94: 特种光电器件的超快激光微纳制备基础研究项目 | D94: 建立特种光电器件超快激光加工装备产业化基地，具备为我国航空、航天和国防事业提供特种光电器件加工的能力 | E94: 吉林大学电子科学与工程学院 | F94: 观察 | G94: 工研院 | H94: 长春市汽开区
B95: 四 | C95: 生物医药及先进医疗器械 | D95: =B155-B94 -> 60
B96: =B94+1 -> 88 | C96: 江林生物靶向小分子药物项目 | D96: 靶向表观遗传调控蛋白的小分子药物，主攻恶性肿瘤以及免疫炎症性疾病 | E96: 吉林省江林生物科技有限公司 | F96: 完成 | G96: 工研院 | H96: 省股权
B97: =B96+1 -> 89 | C97: 益科思特双抗项目 | D97: 面向急性白血病、非霍奇金淋巴癌的新型免疫双特异性抗体药物研发与制造 | E97: 益科思特（北京）公司 | F97: 研究论证 | G97: 工研院 | H97: 长春新区
B98: 90 | C98: 辅助生殖化学发光检测 | D98: 辅助生殖诊断相关的单人份化学发光检测系统以辅助生殖技术为切入点，在满足产前筛查、性腺类、不孕不育类系列生殖方向检测项目的同时，也可进行炎症、心肌标志物、甲状腺系列检测 | E98: 吉林中科科仪有限公司 | F98: 观察 | G98: 工研院 | H98: 医工所
B99: 91 | C99: 硬性内窥镜 | D99: 省内第一家集内窥镜研发、生产、维修于一体的科技公司 | E99: 长春市光泓科技有限责任公司 | F99: 观察 | G99: 工研院 | H99: 长春理工
B100: 92 | C100: 神经及内分泌药物研发 | D100: 作为仿制药企，以临床需求导向，围绕神经、内分泌科领域研发、制造丁苯酞、重组人生生长素、黄体酮凝胶、糖蛋白等产品管线 | E100: 吉林省奇健生物技术有限公司 | F100: 观察 | G100: 工研院 | H100: 长春新区
B101: 93 | C101: 晶莱生物 | D101: 公司围绕临床前CRO服务、动物实验等业务，通过与北京市高校、医院紧密合作，致力成为生物医药医学研发的一站式服务平台 | E101: 北京晶莱华科生物技术有限公司 | F101: 观察 | G101: 工研院 | H101: 长春新区
B102: =B101+1 -> 94 | C102: 无限远视觉保护 | D102: 为守护眼发育、用眼健康，深耕眼视光产品研发领域取得多项专利，为青少年、白领等重频用眼人群，提供光科首例无限远视觉保护显示终端解决方案 | E102: 长春市倍视得智能科技有限公司 | F102: 观察 | G102: 工研院 | H102: 科技大市场
B103: 95 | C103: 拓华生物 | D103: 细胞生物技术与细胞药物研发细胞制备、储存与临床转化应用为一体的国家高新技术企业 | E103: 吉林省拓华生物科技有限公司 | F103: 观察 | G103: 工研院 | H103: 亚东公司
B104: 96 | C104: 干细胞、外泌体、重组蛋白、白介素-27减肥 | D104: 由吉林大学药学院马杰院长科研团队组建，以干细胞及重组蛋白药物研发、生产及转化为主要方向的高科技生物医药企业。主要产品位干细胞、外泌体、白介素-27以及纤连蛋白。 | E104: 赛浦生物科技（长春）有限公司 | F104: 观察 | G104: 工研院 | H104: 创业导师活动
B105: 97 | C105: 同视机生产 | D105: 运用传感器、物联网、互联网、图像识别与处理技术等技术，建立电子病历库，研发、制造行业领先的自动化同视机。 | E105: 美视康健（北京）医疗技术发展有限公司 | F105: 观察 | G105: 工研院 | H105: 创业导师活动
B106: 98 | C106: 类器官项目 | D106: 长春艺夫生物科技有限公司是一家以类器官技术为核心的创新型生物科技企业。公司成立于 2022 年 5 月，由丁健院士科研团队创立，总部位于吉林省长春市净月国家高新技术开发区。公司提供科研与临床精准治疗的肿瘤类器官药物敏感性检测平台、行业上中下游产品的转化与生产、新药研发-体外CRO服务，致力于个体化治疗、新药研发及基础医学研究三个方向。 | E106: 长春艺夫生物科技有限公司 | F106: 观察 | G106: 工研院 | H106: 长春生命健康产业研究院
B107: 99 | C107: 医疗康养 | D107: 辽源最大的医养综合体，拟开展血液透析等项目。 | E107: 东辽盛邦医院 | F107: 观察 | G107: 工研院 | H107: 市场调研
B108: 100 | C108: 全人源抗胰高血糖素受体抗体 | D108: 北京科信美德生物医药科技有限公司是一家生物制药公司，公司开发的治疗1型糖尿病的胰高血糖素受体抗体药物，获得了2014中关村十大创新成果奖。 | E108: 北京科信美德生物医药科技有限公司 | F108: 观察 | G108: 工研院 | H108: 市场调研
B109: 101 | C109: 专注抗肿瘤创新药 研发、生产及商业化 | D109: 聚焦肿瘤药物的研发、生产与销售。目前公司拥有两款具有同类最佳“best in class”潜力的商业化阶段抗肿瘤新药：中国首个且唯一，全球第三个获批宫颈癌适应症PD 1单抗；全球第二个获批的 CXCR4 抑制剂，为近十年来 FDA 在干细胞动员适应症批准的首个新药，通过具有协同效应的管线，差异化的临床开发和商业策略，满足医疗需求、治愈病患，实现国际布局。 | E109: 誉衡生物 | F109: 观察 | G109: 工研院 | H109: 市场调研
B110: =B109+1 -> 102 | C110: 人源NGF项目 | D110: 神经生长因子(nerve growth factor, NGF) 是最早被发现的生长因子。自从它在20世纪50年代被发现，并在1986年获得诺贝尔奖以来，人们对它在对神经疾病，肿瘤等领域的临床应用寄予极高的期望。 | E110: 长春力太生物技术有限公司 | F110: 观察 | G110: 工研院 | H110: 长春生命健康产业研究院项目路演
B111: =B110+1 -> 103 | C111: 可吸收手术缝合线 | D111: 利用树脂材料制备医用可吸收的缝合团线及缝线 | E111: 长春赛诺海思生物医用材料有限公司/应化所孵化（陈学思） | F111: 观察 | G111: 工研院 | H111: 东北亚博览会医疗器械行业项目路演
B112: 104 | C112: 新型生长因子载药可吸收手术缝 | D112: 团队专业从事生长因子载药可吸收缝合线的科研、生产、销售和服务工作 | E112: 吉林省长发现代农业科技集团有限公司 | F112: 观察 | G112: 工研院 | H112: 创客大赛
B113: 105 | C113: 新海生物干细胞药物项目 | D113: 干细胞细胞药物研发与制造 | E113: 吉林新海生物科技开发有限公司 | F113: 观察 | G113: 工研院 | H113: 市场调研
B114: 106 | C114: TIL细胞药物项目 | D114: 聚焦浸润性淋巴细胞（TIL）药物系列产品研发 | E114: 上海医菲尼迪公司 | F114: 研究论证 | G114: 工研院 | H114: 市场调研
B115: 107 | C115: 博大制药化药项目 | D115: 化学仿制药品依达拉奉、左乙拉西坦、利伐沙班的研发与制造 | E115: 吉林省博大制药股份有限公司 | F115: 观察 | G115: 工研院 | H115: 亚东公司
B116: 108 | C116: 博大伟业化药项目 | D116: 化学仿制药品聚普瑞锌颗粒的研发与制造 | E116: 吉林省博大伟业制药有限公司 | F116: 观察 | G116: 工研院 | H116: 亚东公司
B117: 109 | C117: 结直肠癌检测项目 | D117: 针对结直肠癌的血液中循环游离DNA（cfDNA）的甲基化检测 | E117: 苏州医工所（长春） | F117: 观察 | G117: 工研院 | H117: 苏州医工所
B118: 110 | C118: 新区创新药招商项目 | D118: 鞍石生物、泰泽惠康、德益阳光、君远生物、奇健生物等生物创新药物项目 | E118: 各企业 | F118: 观察 | G118: 工研院 | H118: 长春新区
B119: 111 | C119: 用于糖尿病 DKA预诊断的便携式丙酮检测仪的产业化应用 | D119: YSZ和CeCh基混成电位型丙酮传感器具有灵敏高、稳定性好和成本低等特点，是开发便携式糖尿病人DKA检测仪的理想器件 | E119: 吉林大学 | F119: 观察 | G119: 工研院 | H119: 企业家日
B120: =B119+1 -> 112 | C120: 重组全人源抗RANKL单克隆抗体药物产业化项目 | D120: 面向中老年高发的骨质疏松、心脑血管等疾病领域，产品涵盖生物制品地舒单抗注射液、化药片剂阿仑膦酸钠片及保健食品等若干生物药、化药、保健品等 | E120: 菲洋生物科技（吉林）有限公司 | F120: 研究论证 | G120: 工研院 | H120: 创客大赛
B121: 113 | C121: 山东威高血液透析北方运营中心项目 | D121: 主要建设血液透析中心、透析制剂生产基地、腹膜透析生产基地、仓储物流中心、医疗器械托管配送中心等 | E121: 山东威高集团、吉林大学 | F121: 观察 | G121: 工研院 | H121: 省重大项目办
B122: 114 | C122: 重离子加速器项目 | D122: 项目总投资15亿元，占地面积18万平米。项目从开工建设到完成检测注册大概需要3～4年时间，其中一年半时间为设备加工和土建施工期，项目注册、检测和临床需要一年半到两年时间 | E122: 亚泰集团、国科控股、吉龙实业、吉大一医、兰州近代物理所 | F122: 观察 | G122: 工研院 | H122: 省重大项目办
B123: 115 | C123: 圣博玛生物医用材料和高植医疗器械研发与产业化项目 | D123: 主要建设行政办公区、企业研发和中试放大中心、核心生产设施、生产配套设施、第三方检测中心及其他配套设施等，生产可吸收骨骼内固定产品、运动医学产品、医学整形产品和创伤类产品等 | E123: 长春圣博玛生物材料有限公司、长春应化所 | F123: 观察 | G123: 工研院 | H123: 省重大项目办
B124: 116 | C124: 先进医疗器械项目 | D124: 引入平安医保科技公司，依托亚泰医药园，与吉林大学第一医院、亚泰集团和中科院苏州医学工程所，共建平台。同时，建设平安健康检测中心（东北旗舰店），并在吉港澳中医药合作区设立分中心，带动更多中医药企业和先进医疗器械企业进入亚泰医药园和吉港澳中医药合作区，形成医药健康产业集群 | E124: 吉林大学第一医院、长春亚泰集团、中科院苏州医学工程所 | F124: 观察 | G124: 工研院 | H124: 省重大项目办
B125: 117 | C125: 智能可穿戴设备产业园项目 | D125: 项目占地5万平方米，建筑面积8万平方米，建设生产区、研发区、综合服务区等 | F125: 观察 | G125: 工研院 | H125: 省重大项目办
B126: 118 | C126: 长春生物制品所血液制品项目 | D126: 建设血液制品生产车间 | E126: 长春生物制品研究所 | F126: 观察 | G126: 工研院 | H126: 十四五重大工业项目
B127: 119 | C127: 国药集团生物疫苗基地项目 | D127: 长春生物制品所建设疫苗分包装车间、P3生产车间、P3实验室，承接新冠疫苗半成品分包装、原液委托生产，开展人用疫苗研发生产。长春祈建建设疫苗分包装车间、仓储库等项目 | E127: 长春生物制品研究所有限责任公司、长春祈建生物有限公司 | F127: 观察 | G127: 工研院 | H127: 十四五重大工业项目
B128: 120 | C128: 卓谊生物股份有限公司疫苗项目 | D128: 建设冻干人用狂犬病疫苗（Vero细胞）智能化生产车间、CPG佐剂疫苗车间、研发中试车间、办公楼、质检楼、生活楼、食堂、会议中心、活动中心、实验动物室、仓库1、仓库2、危险品库（含危废库房）、污水站、动力站、动物房、人流门卫、物流门卫及其他附属配套设施等 | E128: 长春卓谊生物股份有限公司 | F128: 观察 | G128: 工研院 | H128: 十四五重大工业项目
B129: 121 | C129: 金赛药业国际产业园建设项目 | D129: 建设生产真核产品160万支/年、原核产品850万支/年、化药制剂产品200万支/年生产车间 | E129: 长春金赛药业有限责任公司 | F129: 观察 | G129: 工研院 | H129: 十四五重大工业项目
B130: 122 | C130: 安沃高新基因抗体类药物生产项目 | D130: 建设年产120万支阿达木单抗类似物、年产74万支贝伐珠单抗类似药、年产80万支阿柏西普类似物生产线 | E130: 长春安沃高新生物制药有限公司 | F130: 观察 | G130: 工研院 | H130: 十四五重大工业项目
B131: 123 | C131: 康宁杰瑞（吉林）生物医药项目 | D131: 建设年产100万支全人源化单克隆抗体生产线 | E131: 康宁杰瑞（吉林） | F131: 观察 | G131: 工研院 | H131: 十四五重大工业项目
B132: 124 | C132: 安睿特重组人白蛋白生产项目 | D132: 建设生产车间、质检中心、仓库、危险品库、开闭所等，购置设备730台（套） | E132: 通化安睿特生物制药股份有限公司 | F132: 观察 | G132: 工研院 | H132: 十四五重大工业项目
B133: 125 | C133: 胰岛素全产业链项目 | D133: 建设可生产二代、三代、四代，速效、短效、中效、长效及双时相等全系列胰岛素生产车间 | E133: 吉林惠升生物制药有限公司 | F133: 观察 | G133: 工研院 | H133: 十四五重大工业项目
B134: 126 | C134: 华润生物疫苗项目 | D134: 华润医药控股有限公司、中韩示范区双兴实业投资集团及嘉源生物药业公司合作打造国家级生物疫苗产业基地 | E134: 华润医药、中韩示范区、嘉源生物 | F134: 观察 | G134: 工研院 | H134: 十四五重大工业项目
B135: 127 | C135: 罗邦制药建设项目 | D135: 建设办公楼、生产车间、库房、职工生活用房 | E135: 吉林省罗邦药业有限公司 | F135: 观察 | G135: 工研院 | H135: 十四五重大工业项目
B136: 128 | C136: 海外医药研发生产基地项目 | D136: 主要建设大健康产业（含保健食品生产及中试基地）、医药仓储物流、总部大厦、研发基地。建设感叹号、布洛芬、乙肝宁片、通风定片及烫伤膏等100多种产品的生产车间 | E136: 长春海外制药集团有限公司 | F136: 观察 | G136: 工研院 | H136: 十四五重大工业项目
B137: 129 | C137: 三圣医药制造基地项目 | D137: 建设污水、固废处理站，原料药生产车间，原料药中间体生产车间，新品种生产车间，综合大楼，动力站，原固体制剂车间一层改造，仓库，制剂大楼，危险化学品库及相关附属设施 | E137: 辽源市百康药业有限责任公司 | F137: 观察 | G137: 工研院 | H137: 十四五重大工业项目
B138: 130 | C138: 敖东延边药业口服液智能车间项目 | D138: 新建智能提取车间、智能口服液车间、高架智能立体仓库、综合办公楼、研发中心等配套设施，实现年产口服液7.8亿支 | E138: 吉林敖东延边药业股份有限公司 | F138: 观察 | G138: 工研院 | H138: 十四五重大工业项目
B139: 131 | C139: 医用高清3D腹腔内窥镜 | D139: 用于腹腔、胸腔等科室的微创医学检查和微创手术，为医生实时提供高清三维图像信息，提升检查精准度，提高手术效率，该项目实现了3D内窥镜技术国产化，填补国内空白，和国外产品形成正面竞争，促进我国高端医疗器械产业化发展，增强国产高端医疗器械竞争力 | E139: 长春光机所张红鑫研究员 | F139: 观察 | G139: 工研院 | H139: 企业家日
B140: 132 | C140: 数字PCR快速检测系统产业化项目 | D140: 主要产品为PCR仪器及耗材，可广泛应用于医学、生物学等各个领域，如拷贝数变异、突变检测、NGS数据验证、单细胞基因表达分析等 | E140: 长春国科医工科技发展有限公司 | F140: 观察 | G140: 工研院 | H140: 中科创投
B141: 133 | C141: 体液分析试剂研发项目 | D141: 高品质全自动体液分析工作站及试剂和耗材的开发、生产和销售 | E141: 长春迈克赛德医疗科技有限公司 | F141: 研究论证 | G141: 工研院 | H141: 中科创投
B142: 134 | C142: 血液免疫相容性检验系列产品产业化项目 | D142: 研制SMART血型快速检测卡、ABO&RhDCE微流控芯片、水性胶微柱免疫分析试剂、血小板血型相容性检测系列试剂等产品 | E142: 中科院苏州医工所李勇团队 | F142: 观察 | G142: 工研院 | H142: 中科创投
B143: 135 | C143: 便携式糖尿病酮症酸中毒检测仪项目 | D143: 开发高性能便携式检测仪 | E143: 吉林大学电子科学与工程学院 | F143: 观察 | G143: 工研院 | H143: 中科创投
B144: 136 | C144: 桑黄菌活性成分应用产业化项目 | D144: 利用超声波、低温冻干等方法，得到桑黄提物干粉，运用在生物医药、保健食品领域 | E144: 吉林大学分子酶学工程教育部重点实验室 | F144: 观察 | G144: 工研院 | H144: 中科创投
B145: 137 | C145: SERScreen高通量靶向药物筛选技术项目 | D145: 以团队拥有自主知识产权的药物筛选技术（SERScreen）为核心，提供早期药物筛选外包服务 | E145: 吉林大学药学院技术团队、北京先明药物开发有限公司（未成立） | F145: 观察 | G145: 工研院 | H145: 吉浙对口合作
B146: 138 | C146: 吉林省核酸检测实验室建设项目 | D146: 新建“吉林省核酸检测实验室”，实验室为公司化运营的新型研发机构，下设“核酸检测试剂生产”，“抗原检测试纸生产”，“实时荧光等温扩增仪”，“第三方检测平台”，“样本保存液、提取液及配套耗材”等平台 | E146: 中科应化(长春)科技有限公司 | F146: 观察 | G146: 工研院 | H146: 吉浙对口合作
B147: 139 | C147: 一种靶向杀伤肿瘤细胞的表达载体及应用项目 | D147: 利用基因抑制肿瘤生长及形成，起到治疗肿瘤目的 | E147: 吉林省叁友医药科技有限公司、吉林大学生命科学学院 | F147: 观察 | G147: 工研院 | H147: 吉浙对口合作
B148: 140 | C148: 颈动脉支架的产业化研究项目 | D148: 解决颈动脉支架依赖进口、价格高等痛点，扶持卡脖子材料和技术的原始创新 | E148: 中科院长春应化所 | F148: 观察 | G148: 工研院 | H148: 吉浙对口合作
B149: 141 | C149: 可控SiO2基因递送载体项目 | D149: 一种可调节、可表面修饰的SiO2尖峰载体平台技术，用于核酸递送 | E149: 长春维石检测技术服务有限公司 | F149: 观察 | G149: 工研院 | H149: 吉浙对口合作
B150: 142 | C150: 免消化蛋白系列产品股权融资项目 | D150: 采用生物酶工程技术提供一种不需要消化可直接吸收的蛋白质产品 | E150: 吉林省无量寿生物科技有限公司 | F150: 观察 | G150: 工研院 | H150: 吉浙对口合作
B151: 143 | C151: 百克生物疫苗研发及产业化项目 | D151: 研发、生产双靶向治疗性阿尔茨海默病疫苗、单纯疱疹病毒-2疫苗等重点疫苗产品 | E151: 长春百克生物科技股份公司 | F151: 观察 | G151: 工研院 | H151: 百克生物
B152: 144 | C152: 吉林云飞医药有限公司项目 | D152: 重点针对医药原料、消杀产品及保健品进行研发与生产 | E152: 吉林云飞医药有限公司 | F152: 观察 | G152: 工研院 | H152: 省股权
B153: 145 | C153: 全自动生化芯片分析系统项目 | D153: 是一种便携式微型生化分析仪。该系统面向临床及疾病监护对便携式生物、化学检测技术的需求 | E153: 中科院长春光机所 | F153: 观察 | G153: 工研院 | H153: 市场调研
B154: 146 | C154: 3D支气管内窥镜项目 | D154: 3D支气管内窥镜是可实现3D成像的支气管内窥镜，可获取支气管内部三维图像信息，并通过3D显示屏显示 | E154: 中科院长春光机所 | F154: 观察 | G154: 工研院 | H154: 市场调研
B155: 147 | C155: 基因检测设备研发项目 | D155: 针对细胞分选仪、生物芯片阅读仪等关键设备进行研发、生产 | E155: 长春技特生物技术有限公司 | F155: 观察 | G155: 工研院 | H155: 市场调研
B156: 五 | C156: 车规级芯片及功率半导体器件 | D156: =B160-B155 -> 4
B157: =B155+1 -> 148 | C157: 集成电路产业化项目 | D157: 集成电路芯片设计及产品制造 | E157: 长光圆芯、长光辰芯、吉林中科创投、长光集团、长光视园 | F157: 观察 | G157: 工研院 | H157: 长光视园
B158: =B157+1 -> 149 | C158: 芯方舟数据处理内存芯片项目 | D158: 以数据为中心的数据处理芯片 | E158: 芯方舟（上海）集成电路有限公司 | F158: 观察 | G158: 工研院 | H158: 市场调研
B159: =B158+1 -> 150 | C159: 8英寸CIS-FSI年6万片晶圆生产线项目 | D159: 解决我国芯片代工受限的局面，打造芯片加工全产线。已经建设了国内首家背照式工艺线，已经完成生产平台的搭建，正在积极开拓BSI工艺代工市场，同时依托国家军民融合项目，参与解决国家卡脖子问题 | E159: 长春长光圆辰微电子技术有限公司 | F159: 观察 | G159: 工研院 | H159: 省重大项目办
B160: 151 | C160: 天明盛OLED OCA光学材料制造项目 | D160: 建设光学胶产业化基地、光学胶研发中心和产业化生产线 | E160: 长春天明盛科技有限公司 | F160: 观察 | G160: 工研院 | H160: 十四五重大工业项目
B161: 六 | C161: 人工智能及智能机器人 | D161: =B174-B160 -> 13
B162: =B160+1 -> 152 | C162: 华欣公司 | D162: 华欣公司为运营公司控股、管理团队参股，以“云数链”运营和服务为基础的混合所有制企业。 | E162: 吉林省华欣数字科技股份有限公司 | F162: 观察 | G162: 工研院 | H162: 运营公司
B163: =B162+1 -> 153 | C163: 攀华机器人项目 | D163: 初期与众升合作开发煮面机器人，满足无人面馆的需求，后续将视情况与攀华集团合作，开发酸菜、榨菜自动化产线等自动化设备 | E163: 长春众升科技发展有限公司 | F163: 观察 | G163: 工研院 | H163: 工研院对外交流合作中心
B164: 154 | C164: 基于先进光学成像技术的AI检测系统 | D164: 基于大视场低畸变光学技术、可控波长照明技术、采用长光辰芯的高分辨率大靶面Cmos芯片的AI缺陷智能检测系统达到了应用级水平，解决了完全无规律的复杂图像处理问题、提高了检测的抗干扰能力，通过AI深度学习识别算法将检测准确率大幅度提高，提升了行业智能化、自动化水平。为汽车制造、机械加工等多领域提供了可信赖的解决方案，实现智能制造设备国产化。 | E164: 中科院长春光机所 | F164: 观察 | G164: 工研院 | H164: 科技大市场
B165: =B164+1 -> 155 | C165: 人工智能心理健康检测系统 | D165: 以医疗检验大数据为基础，集数据汇交、算法分析、计算应用为一体，专注于医疗健康人工智能产品研发 | E165: 健数（长春）科技 | F165: 观察 | G165: 工研院 | H165: 创客大赛
B166: 156 | C166: 工业物联网标识项目 | D166: 稀缺资源。工业互联网标识解析二级节点 | E166: 吉林省钊铭工业互联网有限公司 | F166: 观察 | G166: 工研院 | H166: 市场调研
B167: 157 | C167: 仿生机器人项目 | D167: 任露泉院士团队，仿生机器人、灵巧手 | E167: 北京达奇月泉仿生科技有限公司 | F167: 观察 | G167: 工研院 | H167: 市场调研
B168: 158 | C168: 人工智能 | D168: 博立电子在“智能计算与分析领域”处于国际先进、国内领先水平。自主研发的智能图像处理与视频分析技术已处于国内外领先水平，正积极推动相关技术在智慧体育、智慧医疗、智能网联汽车、智能制造等领域的应用，实现了包括智能体育比赛导播与分析技术、卫星无人机智能图像处理与分析、业界首创的智能全景视觉感知技术、三维视觉与自主导航等一大批研发成果。 | E168: 长春博立电子科技有限公司 | F168: 观察 | G168: 工研院 | H168: 市场调研
B169: 159 | C169: 智能列车感知系统 | D169: 在有效检测距离范围内通过激光雷达、毫米波雷达、视频传感器融合技术，对轨面上突发侵入或隧道结构设备落下的障碍物进行主动识别，采用激光雷达或视频传感器等工具对线路进行实时检测，能够准确识别列车运行限界范围内的障碍物大小和位置信息，判断该障碍物影响列车正常运行时，具备向驾驶员预警（在有人驾驶情况下）以及施加制动采取防护措施，可进行分级报警和制动，提高列车运行安全防护。 | E169: 吉林瑞电科技有限公司 | F169: 观察 | G169: 工研院 | H169: 创客大赛
B170: 160 | C170: 智适应喷涂机器人 | D170: 在国际上率先提出了基于脑启发的喷涂轨迹自主规划理论，针对新装备制造的多样复杂喷涂需求，突破了机器人自主扫描、点云匹配、站位优化和仿形控制等系列关键技术，实现被喷对象的感知和复杂曲面喷涂轨迹的随机规划，解决自主喷涂轨迹规划全局性、适应性、精确性难以兼顾的问题 | E170: 长春理工 | F170: 观察 | G170: 工研院 | H170: 企业家日
B171: =B170+1 -> 161 | C171: 基于人工智能的视障人士无障碍生活辅助平台项目 | D171: 通过智能眼镜获取图像或视频，为盲人提供智能识别辅助、一键求助、学习辅助、专属社交、专属商城、专属广告和日常查询等功能，打造一站式、智能化的专属无障碍生活辅助平台 | E171: 长春云海科技有限公司 | F171: 观察 | G171: 工研院 | H171: 吉浙对口合作
B172: =B171+1 -> 162 | C172: 工厂智能化软件研发项目 | D172: 数字化智能工厂系统解决方案服务商 | E172: 长春易加科技有限公司 | F172: 观察 | G172: 工研院 | H172: 中科创投
B173: 163 | C173: 智能机器人及自动化装备项目 | D173: 并联分拣机器人、移动协作机器人、智能黄金自动回收机、实验室自动化装备、小白鼠自动化养殖、水虻养殖自动化生产线、水质检测自动化 | E173: 中国科学院机器人与智能装备中心、韩国汉阳大学尖端机器人实验室、重庆固高科技长江研究院 | F173: 观察 | G173: 工研院 | H173: 中科德睿
B174: 164 | C174: 低/无代码技术 | D174: 依托云平台及人工智能等技术支持，为客户提供无/低代码信息系统开发服务 | E174: 吉林省竹玖信息技术有限公司 | F174: 观察 | H174: 科技大市场
B175: 七 | C175: 生物基及高性能新材料 | D175: =B199-B174 -> 24
B176: =B174+1 -> 165 | C176: CVD金刚石项目 | D176: 在半导体金刚石领域拥有国际先进的技术储备，已具备较好的成果产业化转化条件。在一定规模投资支持和推动下，优化工艺和创新发展新技术，通过小试-中试，短期内可在半导体金刚石基片、掺杂薄膜电极、热沉、半导体单晶晶圆等产品产出，并培育高端半导体器件产品 | E176: 吉林省冶金研究院、 吉林大学 | F176: 观察 | G176: 工研院 | H176: 冶金研究院
B177: =B176+1 -> 166 | C177: 高性能低游离聚氨酯弹性体 | D177: 拥有自主研发的低游离预聚物工业化生产技术，已建立起 PPDI、NDI、MDI、TDI 等全系列低游离产品线，除朗盛外第二家拥有完整产品线的公司 | E177: 吉林中科优锐科技有限公司 | F177: 研究论证 | G177: 工研院 | H177: 创客大赛
B178: 167 | C178: 浮空器囊体材料 | D178: 掌握核心及独家技术 | E178: 长春应化所 | F178: 观察 | G178: 工研院 | H178: 创客大赛
B179: 168 | C179: 无卤阻燃ABS技术 | D179: 公司成立于2013年，经过多年的创新发展，现有生产能力可以达到年产各种改性塑料，功能母料5000吨以上，产品广泛用于各种汽车专用料、农膜功能材料。预计未来三年公司将在技术合作和成果转让上投入将达一千万元，将重点研发新型无卤阻燃剂，新型阻燃芯片封装胶，碳纤维固化剂，电磁屏蔽材料，以及采用新的自由基引发剂和工艺制备的接枝物等产品。 | E179: 吉林省百恩塑胶科技有限公司 | F179: 观察 | G179: 工研院 | H179: 创业导师活动
B180: 169 | C180: 玄武岩纤维 | D180: 吉林通鑫玄武岩是集玄武岩连续纤维及玄武岩纤维复合材料的研发、生产、销售为一体的新型技术企业。公司采用池窑法，具备产能大、连续拉丝工艺领先、产品稳定性强等优势，主要生产、销售玄武岩纤维无捻粗纱、复合筋、短切纱、土工格栅、玄武岩纤维布、玄武岩纤维增强复合材料、轻量化汽车部件（和一汽合作内饰板、车厢板、传动轴管等）等相关玄武岩纤维及玄武岩纤维复合产品，已中标中铁集团对玄武岩纤维的采购合同，合金金额超千万元。 | E180: 吉林融信、吉林通鑫 | F180: 观察 | G180: 工研院 | H180: 市场推介
B181: 170 | C181: 新型友好型水性无铬锌铝基金属防护材料的研发及产业化 | D181: 以新型的无铬钝化成膜液为主要成膜物质，以片状锌、铝粉为主要基质，通过特殊的物理、化学处理工艺，形成一种具有超强防腐能力的无铬绿色防护涂层。广泛的应用于汽车、交通、航空、机械工程及军工领域，可以完全替代目前正在国内大量使用的达克罗技术，替代日本久美特等产品。 | E181: 吉林华顾时代新型材料科技有限公司 | F181: 观察 | G181: 工研院 | H181: 创客大赛
B182: 171 | C182: 超阻尼材料 | D182: 公司以“发现具有行业突破性新材料技术，助力产业的发展和进步”为核心理念，以光伏、储能、新能源汽车等产业领域和个人消费升级发展所需关键材料的研发为发展方向。主营为光伏粘结密封用超材料（US树脂）的设计、开发与制造销售，超阻尼材料的设计、制造与销售，氟硅油的制造与销售。 | E182: 长春中科赫帝森材料科技有限公司 | F182: 观察 | G182: 工研院 | H182: 创客大赛
B183: 172 | C183: TPI注塑树脂 | D183: 公司成立于2018年9月，坐落于高新北区，注册资本500万元 由自然人占股70%，长春应化所专利技术占股30%，其中科研团队占股15%。公司的核心产品为聚酰亚胺树脂及复合材料聚酰亚胺纤维及制品 已形成多规格系列产品。 | E183: 吉林省亚安新材料有限公司 | F183: 观察 | G183: 工研院 | H183: 新材料孵化器
B184: =B183+1 -> 173 | C184: 二氧化碳基生物可降解塑料 | D184: 占面积5.2万平方米，建设5万吨/年生物降解塑料生产装置，建设车间、消防水池、控制室等。11月16日启动试生产 | E184: 博大东方新型化工（吉林）有限公司 | F184: 观察 | G184: 工研院 | H184: 省重大项目办
B185: 174 | C185: 尼龙56项目 | D185: 上海凯赛生物公司掌握成熟的尼龙56研发制造技术。在新疆乌苏建设的年产10万吨生产线已经开车运行。拟在松原市建设尼龙56产业链，项目分期建设，省农发行给予融资支持，金沙江能源配套实施能化共轨项目。上海凯赛经过多年技术攻关，成功的实现了以玉米淀粉为原料，通过独特的生物法技术，把淀粉转换为“生物基戊二胺”产品，再与己二酸进一步聚合为“生物基聚酰胺”的工业化工艺技术路线 | E185: 上海凯赛生物公司 | F185: 观察 | G185: 工研院 | H185: 省重大项目办
B186: 175 | C186: 生物质高附加值综合利用项目 | D186: 项目以生物质为原料生产纤维素、半纤维素、航空煤油等系列产品。采用 “WSET 三素技术”，计划年产纤维素100万吨、半纤维素40万吨、航空煤油20万吨及其他附属产品。新建动力车间、综合楼、检验中心、原料库等配套设施。已开展项目选址、可研编制等前期工作 | E186: 中国化学赛鼎工程有限公司 | F186: 观察 | G186: 工研院 | H186: 省重大项目办
B187: 176 | C187: 聚醚醚酮新材料延伸项目 | D187: 聚醚醚酮（PEEK）深加工系列产品，建设办公楼、综合车间 | E187: 吉林省中研高分子材料股份有限公司 | F187: 观察 | G187: 工研院 | H187: 省重大项目办
B188: 177 | C188: 具有杀菌消毒功能的空气净化设备 | D188: 中国科学院长春应用化学研究所与艾易西中国环保科技有限公司共同研究开发具有杀菌消毒功能的空气净化设备。空气净化设备核心滤料使用中科院研发的气相净化材料，每年有800吨空气净化材料可应用于空气净化设备，保证空气净化设备的生产、销售 | E188: 长春应化所 | F188: 观察 | G188: 工研院 | H188: 企业家日
B189: 178 | C189: 透明抗冲蚀磨损防护涂层材料 | D189: 开发了透明抗冲蚀磨损的防护涂层材料，具有高透明性、高基底间附着力，可满足在极端使役工况下的需求，高透明抗冲蚀磨损防护涂层已经完成相关涂料的中试放大验证，完成吨级生产线的建设，具备提供吨级原料能力 | E189: 长春应化所 | F189: 观察 | G189: 工研院 | H189: 企业家日
B190: 179 | C190: 尼龙-11树脂材料制备工艺 | D190: 打破国外垄断，开发拥有独立知识产权的合成技术，用蓖麻油为主要原料，已实现30吨/年规模的装置全流程扩大生产。以更低的成本实现国外先进水平的产品收率，对标国际产品质量标准，填补了此项技术的国内空白 | E190: 长春应化所 | F190: 观察 | G190: 工研院 | H190: 企业家日
B191: 180 | C191: 人造腐殖质材料的开发与应用 | D191: 以玉米秸秆为原料，采用水热催化裂解一步法制备技术完成。该材料经相关检测机构检测，有机质含量60%以上，含腐殖酸、黄腐酸等腐殖质材料40%以上，吸水量为自身重量的350%，能够彻底改变土壤板结、吸水性差等土壤劣化现状。有效保护黑土地，改良盐碱、沙土地，可大幅降低化肥使用量，保障粮食生产安全 | E191: 长春应化所 | F191: 观察 | G191: 工研院 | H191: 企业家日
B192: 181 | C192: 高性能连续纤维增强聚醚醚酮复合材料及其应用 | D192: 获得了成熟的连续纤维增强聚醚醚酮复合材料预浸带及其复合材料制品的制备工艺技术，降低了复合材料的成本 | E192: 吉林大学 | F192: 观察 | G192: 工研院 | H192: 企业家日
B193: 182 | C193: 基于聚二氧化碳树脂（PPC）生物降解胶人工板材 | D193: 基于胶黏剂制备的秸秆复合板材具有无醛、秸秆尤其是玉米秸秆填充量高（重量分数可高达90%）、可完全生物降解、力学性能优异等特点。PPC生物降解胶黏剂制备技术已获中国、美国、欧盟、日本的专利授权，并完成了工业放大技术。拥有自主知识产权的二氧化碳树脂生物降解胶的制备技术 | E193: 长春应化所 | F193: 观察 | G193: 工研院 | H193: 企业家日
B194: 183 | C194: 木质纤维素生物航油联产化学品项目 | D194: 研究秸秆类生物质生产航油等高品质液体燃料技术，实现生物航油的替代 | E194: 中科院广州能源所王晨光团队 | F194: 观察 | G194: 工研院 | H194: 省发改委
B195: 184 | C195: 年产40万吨尼龙5X及5万聚赖氨酸项目 | D195: 预期建设20万吨/年戊二胺生产线；预期建设40万吨/年尼龙5X生产线；预期建设5万吨/年ε-聚赖氨酸 | E195: 白城梅花 | F195: 观察 | G195: 工研院 | H195: 玉米深加工规划
B196: 185 | C196: 年产10万吨PPC项目 | D196: 一期年产5万吨聚碳酸亚丙酯(PPC)项目 | E196: 博大东方新型化工（吉林）有限公司 | F196: 观察 | G196: 工研院 | H196: 玉米深加工规划
B197: 186 | C197: 碳材料项目 | D197: 项目建设1万吨硅炭黑，超级电容炭系列产品 | E197: 吉林省凯禹生物质新材料 | F197: 观察 | G197: 工研院 | H197: 玉米深加工规划
B198: 187 | C198: 高性能聚氨酯制品研发及产业化项目 | D198: 低残余形变隔振器材料及器件、工程轮胎绿色再制造技术及材料、生物医用高分子材料及制品研发和产业化 | E198: 长春安旨科技有限公司 | F198: 观察 | G198: 工研院 | H198: 应化所
B199: 188 | C199: 元合电子材料项目 | D199: 新建合成车间，购置合成设备，补充流动资金 | E199: 吉林元合电子 | F199: 观察 | G199: 工研院 | H199: 长白山股权
B200: 八 | C200: 新能源及动力电池 | D200: =B225-B199 -> 25
B201: =B199+1 -> 189 | C201: 富奥智慧能源 | D201: 参与富奥智慧能源公司增资，实现动力电池梯次利用、再生利用等多项技术的产业化 | E201: 富奥智慧能源科技有限公司 | F201: 投资 | G201: 工研院 | H201: 亚东公司
... 90 more rows

Sheet 旗智项目
B2: 吉林省工业技术研究院技术创新成果转化项目库统计表
B3: 序号 | C3: 项目名称 | D3: 主要建设内容及规模 | E3: 项目主体 | F3: 项目进展 | G3: 跟踪支持单位 | H3: 项目来源 | I3: 备注
B4: 2 | C4: 旗智汽车产业创新中心项目 | D4: 服务汽车产业相关科技成果转化 | E4: 长春市旗智汽车产业创新中心有限责任公司 | F4: 完成投资 | G4: 工研院 | H4: 旗智创新中心
B5: 9 | C5: 知产产权中心项目 | D5: 通过整合产业、资本、知识产权等资源，充分发挥产业知识产权运营中心的资源整合优势、服务优势、资本优势、科研优势、产业优势，推动汽车产业领域知识产权市场化运营，公司注册资本6900万元。 | E5: 工研院公司、旗智创新中心、长春市市场监督管理局 | F5: 接触 | G5: 工研院 | H5: 旗智创新中心 | I5: 新增
B6: 24 | C6: 奔腾定制车型娱乐部件开发项目 | D6: 为奔腾MPV提供定制化娱乐电子部件，包括操控屏，氛围灯，车载冰箱，车载咖啡机等 | E6: 旗智创新中心 | F6: 跟踪 | G6: 工研院 | H6: 旗智创新中心
B7: 25 | C7: 红旗球幕驾驶体验项目 | D7: 采用球幕显示方式，配合多自由度座舱，展示车辆多种路况驾驶体验效果 | E7: 旗智创新中心 | F7: 跟踪 | G7: 工研院 | H7: 旗智创新中心
B8: 26 | C8: 车载图像增强摄像头研发项目 | D8: 世界首款基于Intel架构的广播级8K60软件编解码系统，有效增强摄像头在雾天，黑夜环境下的显示效果 | E8: 旗智创新中心 | F8: 跟踪 | G8: 工研院 | H8: 旗智创新中心
B9: 28 | C9: 纳米保温防火隔声材料应用项目 | D9: 红旗、奔腾等应用于电池包保温、车体保温降噪等 | E9: 旗智创新中心 | F9: 跟踪 | G9: 工研院 | H9: 旗智创新中心
B10: 29 | C10: 碳纤维材料应用项目 | D10: 与吉林化纤、长春工大等开展产学研合作，推动碳纤维技术应用，已开展碳纤维储氢瓶项目 | E10: 旗智创新中心、吉林化纤、长春工大 | F10: 跟踪 | G10: 工研院 | H10: 旗智创新中心
B11: 30 | C11: 三坐标智慧测量系统项目 | D11: 转化奔腾柔性工装专利，联合吉大开展智能测量软件开发 | E11: 旗智创新中心 | F11: 跟踪 | G11: 工研院 | H11: 旗智创新中心
B12: 31 | C12: 车路协同V2X-OBU终端及测试项目 | D12: 车路协同OBU终端研发，全自主应用开发及测试能力 | E12: 旗智创新中心 | F12: 跟踪 | G12: 工研院 | H12: 旗智创新中心
B13: 32 | C13: L4级冗余线控底盘平台车控单元项目 | D13: 国内最高端量产化自动驾驶线控车辆，量产化，高可靠 | E13: 旗智创新中心 | F13: 跟踪 | G13: 工研院 | H13: 旗智创新中心
B14: 132 | C14: 协作机器人集成应用项目 | D14: 孵化本地企业，推动协作机器人在汽车行业应用，提高智能制造水平 | E14: 旗智创新中心 | F14: 跟踪 | G14: 工研院 | H14: 旗智创新中心

Sheet 分析
B3: 项目名称 | C3: 数量
B4: 生物医药及先进医疗器械 | C4: =统计表!D95 -> 60
B5: 汽车电子及新型汽车零部件 | C5: =统计表!D5 -> 33
B6: 光电子及智能传感器 | C6: =统计表!D39 -> 30
B7: 新能源及动力电池 | C7: =统计表!D200 -> 25
B8: 精密仪器及先进装备 | C8: =统计表!D70 -> 24
B9: 生物基及高性能新材料 | C9: =统计表!D175 -> 24
B10: 农产品加工及绿色食品 | C10: =统计表!D254 -> 20
B11: 人工智能及智能机器人 | C11: =统计表!D161 -> 13
B12: 精细化工及天然气化工 | C12: =统计表!D243 -> 10
B13: 碳纤维及复合材料 | C13: =统计表!D226 -> 10
B14: 产业技术创新平台 | C14: =统计表!D281 -> 9
B15: 遥感卫星及航空航天 | C15: =统计表!D237 -> 5
B16: 孵化平台 | C16: =统计表!D275 -> 5
B17: 车规级芯片及功率半导体器件 | C17: =统计表!D156 -> 4
B21: 生物医药及先进医疗器械 | C21: 52
B22: 汽车电子及新型汽车零部件 | C22: 36
B23: 新能源及动力电池 | C23: 25
B24: 精密仪器及先进装备 | C24: 23
B25: 光电子及智能传感器 | C25: 21
B26: 生物基及高性能新材料 | C26: 19
B27: 农产品加工及绿色食品 | C27: 19
B28: 精细化工及天然气化工 | C28: 10
B29: 碳纤维及复合材料 | C29: 9
B30: 人工智能及智能机器人 | C30: 7
B31: 遥感卫星及航空航天 | C31: 4
B32: 车规级芯片及功率半导体器件 | C32: 3
B40: 54
B41: 29
B42: 25
B43: 24
B44: 22
B45: 20
B46: 19
B47: 10
B48: 9
B49: 8
B50: 5
B51: 3
